bitfinex/quotes_BTCUSD_20241226
["timestamp","ask_amount","ask_price","bid_price","bid_amount"]
[1735244975039,0.0771262,95638.0,95637.0,0.2122095]
[1735244975261,0.0811262,95638.0,95637.0,0.2122095]
[1735244975653,0.0811262,95638.0,95637.0,0.2092095]
[1735244975997,0.0771262,95638.0,95637.0,0.2112095]
[1735244976396,0.0781262,95638.0,95637.0,0.2182095]
[1735244976991,0.0781262,95638.0,95637.0,0.23106039]
[1735244978749,0.0781262,95638.0,95637.0,0.02193639]
[1735244978957,0.0781262,95638.0,95637.0,0.23106039]
[1735244979780,0.0781262,95638.0,95637.0,0.02193639]
[1735244979975,0.0781262,95638.0,95637.0,0.23106039]
[1735244982082,0.0781262,95638.0,95637.0,0.02193639]
[1735244984533,0.1900321,95638.0,95637.0,0.02193639]
[1735244986256,0.1900321,95638.0,95637.0,0.0090855]
[1735244986257,0.2368321,95638.0,95637.0,0.0090855]
[1735244987156,0.2358321,95638.0,95637.0,8.55e-05]
[1735244987590,0.2358321,95638.0,95637.0,0.0020855]
[1735244987741,0.1122321,95638.0,95616.0,0.02311628]
[1735244987919,0.0827,95632.0,95616.0,0.02311628]
[1735244988124,0.0827,95629.0,95616.0,0.02311628]
[1735244988491,0.09184123,95630.0,95599.0,0.209205]
[1735244988492,0.0827,95627.0,95609.0,0.02311628]
[1735244988688,0.0827,95624.0,95609.0,0.03571239]
[1735244988969,0.0827,95622.0,95609.0,0.03571239]
[1735244989173,0.10488493,95621.0,95609.0,0.03571239]
[1735244989376,0.10488493,95621.0,95609.0,0.01259611]
[1735244989679,0.10488493,95621.0,95610.0,0.209181]
[1735244990310,0.10488493,95621.0,95616.0,0.001]
[1735244990491,0.10488493,95621.0,95610.0,0.209181]
[1735244990863,0.13262342,95621.0,95610.0,0.209181]
[1735244991388,0.13662342,95621.0,95610.0,0.209181]
[1735244991525,0.12862342,95621.0,95610.0,0.209181]
[1735244991726,0.13062342,95621.0,95610.0,0.209181]
[1735244991972,0.13462342,95621.0,95610.0,0.209181]
[1735244992739,0.13462342,95621.0,95610.0,8.56e-05]
[1735244993554,0.13462342,95621.0,95610.0,0.2092666]
[1735244993826,0.11088493,95621.0,95610.0,0.2092666]
[1735244995267,0.11088493,95621.0,95610.0,8.56e-05]
[1735244996001,0.11088493,95621.0,95610.0,0.2092666]
[1735244997770,0.11088493,95621.0,95607.0,0.01201116]
[1735244997969,0.02403849,95620.0,95607.0,0.01201116]
[1735244998188,0.10488493,95619.0,95601.0,0.15]
[1735244998397,0.10488493,95619.0,95603.0,0.209198]
[1735244998600,0.10488493,95619.0,95605.0,0.209194]
[1735244998900,0.10488493,95619.0,95607.0,0.209189]
[1735244999114,0.02836797,95618.0,95607.0,0.209189]
[1735244999309,0.10488493,95617.0,95607.0,0.209189]
[1735245000305,0.0451,95615.0,95601.0,0.01221884]
[1735245000512,0.18468493,95614.0,95601.0,0.01221884]
[1735245000691,0.03499941,95613.0,95601.0,0.01221884]
[1735245000891,0.10488493,95612.0,95601.0,0.22141984]
[1735245001467,0.10488493,95612.0,95601.0,0.01221884]
[1735245002025,0.10488493,95612.0,95591.0,0.418447]
[1735245002026,0.0798,95611.0,95591.0,0.418447]
[1735245002241,0.10588493,95612.0,95595.0,0.209214]
[1735245002242,0.0798,95609.0,95595.0,0.209214]
[1735245002475,0.12806342,95608.0,95595.0,0.209214]
[1735245003711,0.12806342,95608.0,95595.0,0.20973177]
[1735245004119,0.1249,95607.0,95595.0,0.20973177]
[1735245004309,0.10488493,95606.0,95595.0,0.21073177]
[1735245004667,0.10488493,95606.0,95601.0,8.56e-05]
[1735245005284,0.0001712,95612.0,95611.0,0.20918]
[1735245007228,0.0001712,95612.0,95611.0,0.35918]
[1735245007431,0.0001712,95612.0,95611.0,0.38218]
[1735245007630,0.0001712,95612.0,95611.0,0.38818]
[1735245007990,0.0011712,95612.0,95611.0,0.94988632]
[1735245008400,0.0011712,95612.0,95611.0,1.15906632]
[1735245008579,0.0011712,95612.0,95611.0,1.15306632]
[1735245008780,0.0011712,95612.0,95611.0,1.16088606]
[1735245009040,0.0001712,95612.0,95611.0,1.16088606]
[1735245009973,0.0021712,95612.0,95611.0,1.16088606]
[1735245010175,0.0001712,95612.0,95611.0,1.16088606]
[1735245010380,0.0001712,95612.0,95611.0,1.1730894]
[1735245010597,0.0001712,95612.0,95611.0,1.1820894]
[1735245011133,0.0001712,95612.0,95611.0,1.1860894]
[1735245011795,0.0001712,95612.0,95611.0,1.53207534]
[1735245012012,0.0001712,95612.0,95611.0,1.5242556]
[1735245012215,2e-07,95612.0,95611.0,1.6242556]
[1735245012442,0.000171,95638.0,95637.0,0.209124]
[1735245012700,0.000171,95638.0,95626.0,0.209147]
[1735245012701,0.000171,95638.0,95635.0,0.209127]
[1735245013155,0.000171,95638.0,95636.0,0.00104548]
[1735245013556,0.06807892,95650.0,95649.0,0.209097]
[1735245013780,0.06821963,95650.0,95649.0,0.209097]
[1735245014891,0.06921963,95650.0,95649.0,0.209097]
[1735245015108,0.07021963,95650.0,95649.0,0.209097]
[1735245017744,0.07039083,95650.0,95648.0,0.01173962]
[1735245017950,0.07039083,95650.0,95647.0,0.209101]
[1735245018146,0.0828,95648.0,95632.0,0.15]
[1735245018348,0.10488493,95647.0,95638.0,0.20912]
[1735245018574,0.10488493,95647.0,95638.0,0.418241]
[1735245019213,0.00407449,95646.0,95638.0,0.418241]
[1735245019421,0.10488493,95645.0,95635.0,0.209128]
[1735245019617,0.1302,95644.0,95633.0,0.209132]
[1735245019826,0.10488493,95643.0,95633.0,0.209132]
[1735245020897,0.10488493,95643.0,95633.0,0.211132]
[1735245021124,0.02479781,95642.0,95633.0,0.211132]
[1735245021347,0.10488493,95641.0,95633.0,0.211132]
[1735245022404,0.10488493,95641.0,95633.0,0.420264]
[1735245023192,0.10488493,95641.0,95633.0,0.418264]
[1735245023812,0.10488493,95641.0,95637.0,0.209122]
[1735245024290,0.10488493,95641.0,95637.0,0.418245]
[1735245024505,0.002,95641.0,95637.0,0.418245]
[1735245024710,0.002,95641.0,95640.0,0.173]
[1735245024915,0.002,95641.0,95640.0,0.72034537]
[1735245025121,0.00407449,95646.0,95645.0,0.382106]
[1735245025556,0.00407449,95646.0,95645.0,0.459906]
[1735245025768,0.00407449,95646.0,95645.0,1.006206]
[1735245027347,0.00407449,95646.0,95645.0,1.014206]
[1735245028164,0.00407449,95646.0,95645.0,1.017206]
[1735245028389,0.000171,95666.0,95645.0,1.017206]
[1735245028390,0.000171,95666.0,95650.0,0.5463]
[1735245028607,0.000171,95666.0,95656.0,0.09184123]
[1735245028780,0.000171,95666.0,95665.0,0.382062]
[1735245029655,0.081371,95666.0,95665.0,0.359062]
[1735245030460,0.081371,95666.0,95665.0,0.368062]
[1735245030670,0.081371,95666.0,95665.0,0.209062]
[1735245031081,0.081371,95666.0,95665.0,0.212062]
[1735245031297,0.081371,95666.0,95665.0,0.209062]
[1735245031508,0.081371,95666.0,95665.0,0.210062]
[1735245031704,0.081371,95666.0,95665.0,0.212062]
[1735245032045,0.081371,95666.0,95665.0,0.211062]
[1735245032631,0.19816152,95666.0,95665.0,0.002]
[1735245032836,0.19816152,95666.0,95662.0,0.209068]
[1735245033003,0.10488493,95665.0,95662.0,0.209068]
[1735245034055,0.082371,95666.0,95662.0,0.418136]
[1735245034268,0.001,95665.0,95662.0,0.418136]
[1735245034886,0.002,95665.0,95662.0,0.418136]
[1735245035608,0.001,95665.0,95662.0,0.418136]
[1735245036410,0.081371,95666.0,95662.0,0.418136]
[1735245037132,0.082371,95666.0,95662.0,0.418136]
[1735245037710,0.081371,95666.0,95662.0,0.418136]
[1735245037929,0.081371,95666.0,95662.0,0.419136]
[1735245038640,0.081371,95666.0,95662.0,0.210068]
[1735245038834,0.10488493,95665.0,95662.0,0.001]
[1735245039002,0.12816052,95665.0,95662.0,0.001]
[1735245039643,0.10488493,95665.0,95662.0,0.001]
[1735245040146,0.10488493,95665.0,95658.0,0.209078]
[1735245040352,0.10688493,95665.0,95662.0,0.209067]
[1735245040957,0.10588493,95665.0,95662.0,0.209067]
[1735245041201,0.10588493,95665.0,95658.0,0.209078]
[1735245041465,0.10688493,95665.0,95658.0,0.209078]
[1735245042160,0.10588493,95665.0,95658.0,0.209078]
[1735245042626,0.02337559,95664.0,95658.0,0.209078]
[1735245042823,0.02337559,95664.0,95653.0,0.209087]
[1735245042824,0.10488493,95663.0,95657.0,0.209078]
[1735245044020,0.10488493,95663.0,95657.0,0.418158]
[1735245044274,0.001,95665.0,95653.0,0.209087]
[1735245044275,0.000171,95666.0,95663.0,0.023]
[1735245044519,0.000171,95666.0,95665.0,0.15]
[1735245044684,0.000171,95666.0,95665.0,0.173]
[1735245048418,0.000171,95666.0,95665.0,0.19249015]
[1735245048631,0.000171,95666.0,95665.0,0.19449015]
[1735245049983,0.000171,95666.0,95665.0,0.74079015]
[1735245050180,0.000171,95666.0,95665.0,0.73974503]
[1735245051024,0.000171,95666.0,95665.0,0.83347723]
[1735245051705,0.000171,95666.0,95665.0,0.73974503]
[1735245053483,0.000171,95666.0,95665.0,0.73774503]
[1735245053705,0.000171,95666.0,95665.0,0.83147723]
[1735245053906,0.000171,95666.0,95665.0,0.83247723]
[1735245054482,0.000171,95666.0,95665.0,0.83147723]
[1735245054683,0.000171,95666.0,95665.0,0.87835473]
[1735245054797,0.000171,95666.0,95665.0,0.87135473]
[1735245054993,0.000171,95673.0,95672.0,0.359047]
[1735245056761,0.000171,95673.0,95672.0,0.364047]
[1735245066481,0.079871,95673.0,95672.0,0.214047]
[1735245066639,0.125071,95673.0,95672.0,0.214047]
[1735245067272,0.125071,95673.0,95672.0,0.004]
[1735245067708,0.125071,95673.0,95670.0,0.349102]
[1735245067909,0.125071,95673.0,95670.0,0.418102]
[1735245068881,0.125071,95673.0,95672.0,0.002]
[1735245069290,0.125071,95673.0,95670.0,0.418102]
[1735245070184,0.125071,95673.0,95672.0,0.002]
[1735245071403,0.125071,95673.0,95670.0,0.418102]
[1735245071610,0.125071,95673.0,95670.0,0.419102]
[1735245072010,0.125071,95673.0,95670.0,0.418102]
[1735245072224,0.1375781,95673.0,95672.0,0.001]
[1735245072426,0.125071,95673.0,95672.0,0.001]
[1735245072568,0.125071,95673.0,95670.0,0.418102]
[1735245072769,0.125071,95673.0,95670.0,0.419102]
[1735245072969,0.125071,95673.0,95670.0,0.418102]
[1735245074374,0.125071,95673.0,95672.0,0.002]
[1735245074586,0.1375781,95673.0,95672.0,0.002]
[1735245074916,0.1375781,95673.0,95670.0,0.418102]
[1735245075049,0.11691128,95673.0,95670.0,0.420102]
[1735245075248,0.11691128,95673.0,95670.0,0.418102]
[1735245075631,0.11691128,95673.0,95672.0,0.002]
[1735245076032,0.11691128,95673.0,95670.0,0.418102]
[1735245076296,0.11691128,95673.0,95670.0,0.420102]
[1735245077428,0.11691128,95673.0,95670.0,0.418102]
[1735245077845,0.11691128,95673.0,95672.0,0.002]
[1735245078015,0.11691128,95673.0,95670.0,0.418102]
[1735245078382,0.11991128,95673.0,95670.0,0.418102]
[1735245078881,0.11991128,95673.0,95672.0,0.002]
[1735245079082,0.0799714,95681.0,95672.0,0.023]
[1735245079283,0.0799714,95681.0,95671.0,0.15]
[1735245079284,0.08012652,95681.0,95680.0,0.20903]
[1735245079481,0.19709969,95681.0,95678.0,0.209033]
[1735245079696,0.10488493,95680.0,95678.0,0.209033]
[1735245080155,0.00407127,95679.0,95678.0,0.209033]
[1735245080741,0.00407127,95679.0,95678.0,0.22036873]
[1735245082298,0.00507127,95679.0,95678.0,0.22036873]
[1735245082653,0.00507127,95679.0,95678.0,0.01233573]
[1735245082654,0.00407127,95679.0,95678.0,0.01233573]
[1735245082992,0.00407127,95679.0,95678.0,0.001]
[1735245083134,0.00407127,95679.0,95678.0,0.210033]
[1735245084571,0.10805759,95679.0,95678.0,0.001]
[1735245084769,0.18785759,95679.0,95678.0,0.001]
[1735245085561,0.18785759,95679.0,95676.0,0.418075]
[1735245085831,0.10398632,95678.0,95676.0,0.418075]
[1735245087826,0.10398632,95678.0,95676.0,0.418076]
[1735245089325,0.10498632,95678.0,95676.0,0.418076]
[1735245091348,0.001,95678.0,95676.0,0.418076]
[1735245092121,0.08387127,95679.0,95676.0,0.418076]
[1735245093495,0.08387127,95679.0,95676.0,0.419076]
[1735245093849,0.08387127,95679.0,95676.0,0.418076]
[1735245094076,0.08404227,95679.0,95676.0,0.419076]
[1735245095072,0.079971,95679.0,95676.0,0.419076]
[1735245095276,0.00407127,95678.0,95676.0,0.419076]
[1735245096346,0.00407127,95678.0,95676.0,0.418076]
[1735245096710,0.00407127,95678.0,95676.0,0.419076]
[1735245097348,0.23128493,95677.0,95676.0,0.001]
[1735245097547,0.23038632,95677.0,95676.0,0.001]
[1735245097746,0.14998632,95677.0,95667.0,0.0218407]
[1735245097923,0.0804,95671.0,95667.0,0.0218407]
[1735245098140,0.02095737,95677.0,95666.0,8.55e-05]
[1735245098141,0.1264,95669.0,95666.0,8.55e-05]
[1735245098345,0.1264,95667.0,95666.0,8.55e-05]
[1735245098499,0.23038632,95667.0,95666.0,8.55e-05]
[1735245100547,0.23738632,95667.0,95666.0,0.0010855]
[1735245101611,0.24138632,95667.0,95666.0,0.0010855]
[1735245102218,0.23738632,95667.0,95666.0,0.0010855]
[1735245102355,0.2674378,95667.0,95666.0,8.55e-05]
[1735245102768,0.0804,95666.0,95646.0,0.209104]
[1735245102969,0.0804,95664.0,95649.0,0.209097]
[1735245103189,0.10488493,95663.0,95649.0,0.209097]
[1735245103400,0.02847125,95662.0,95649.0,0.209097]
[1735245103611,0.10488493,95661.0,95649.0,0.209097]
[1735245104017,0.10488493,95661.0,95645.0,8.55e-05]
[1735245104168,0.0804,95664.0,95650.0,0.09184123]
[1735245104367,0.0804,95664.0,95645.0,0.00113096]
[1735245104368,0.0804,95664.0,95661.0,0.20907]
[1735245104771,0.0804,95664.0,95661.0,0.41814]
[1735245105351,0.00089861,95676.0,95665.0,0.209062]
[1735245105352,0.0766,95672.0,95665.0,0.209062]
[1735245105488,0.10488493,95671.0,95665.0,0.209062]
[1735245105692,0.10488493,95671.0,95665.0,0.418124]
[1735245106051,0.13052629,95671.0,95665.0,0.209062]
[1735245106593,0.13052629,95671.0,95665.0,0.418124]
[1735245106793,0.13052629,95671.0,95665.0,0.209062]
[1735245107223,0.13052629,95671.0,95663.0,0.209066]
[1735245107224,0.13052629,95671.0,95661.0,0.001]
[1735245107449,0.03,95669.0,95657.0,0.209079]
[1735245107653,0.10398632,95668.0,95654.0,0.01113842]
[1735245108050,0.00089861,95667.0,95663.0,0.209065]
[1735245108263,0.10398632,95666.0,95663.0,0.209065]
[1735245109428,0.10498632,95666.0,95663.0,0.209065]
[1735245110558,0.00407127,95665.0,95661.0,0.209069]
[1735245110693,0.10398632,95664.0,95661.0,0.209069]
[1735245110902,0.00089861,95663.0,95661.0,0.209069]
[1735245111121,0.10398632,95662.0,95661.0,0.209069]
[1735245111333,0.11818194,95662.0,95661.0,0.209069]
[1735245111751,0.10398632,95662.0,95661.0,0.209069]
[1735245112406,0.10398632,95662.0,95657.0,0.209079]
[1735245112407,0.0766,95661.0,95657.0,0.209079]
[1735245112600,0.10488493,95660.0,95650.0,0.209095]
[1735245112804,0.10488493,95660.0,95649.0,8.55e-05]
[1735245113171,0.10488493,95660.0,95651.0,0.209093]
[1735245113397,0.02324456,95659.0,95651.0,0.209093]
[1735245113574,0.02324456,95659.0,95651.0,0.418186]
[1735245113575,0.10488493,95658.0,95651.0,0.418186]
[1735245113778,0.10488493,95658.0,95649.0,8.55e-05]
[1735245113980,0.10488493,95658.0,95652.0,0.209091]
[1735245114585,0.10488493,95658.0,95652.0,0.418182]
[1735245115360,0.10988493,95658.0,95652.0,0.419182]
[1735245115499,0.11288493,95658.0,95652.0,0.001]
[1735245116499,0.10788493,95658.0,95649.0,8.55e-05]
[1735245116702,0.10988493,95658.0,95649.0,8.55e-05]
[1735245116910,0.02363849,95657.0,95649.0,8.55e-05]
[1735245117109,0.10488493,95656.0,95652.0,8.55e-05]
[1735245117318,0.10488493,95656.0,95652.0,0.0010855]
[1735245117754,0.10488493,95656.0,95644.0,0.209108]
[1735245118170,0.10488493,95656.0,95651.0,0.209093]
[1735245118642,0.11288493,95656.0,95652.0,0.001]
[1735245118843,0.13732342,95656.0,95652.0,0.001]
[1735245119289,0.0803,95655.0,95652.0,0.001]
[1735245119532,0.10488493,95654.0,95652.0,0.001]
[1735245119919,0.10488493,95654.0,95645.0,8.55e-05]
[1735245120377,0.10488493,95654.0,95651.0,0.001]
[1735245120585,0.10488493,95654.0,95645.0,8.55e-05]
[1735245120794,0.1296,95652.0,95645.0,8.55e-05]
[1735245120964,0.02389075,95653.0,95645.0,8.55e-05]
[1735245120965,0.23358632,95646.0,95645.0,8.55e-05]
[1735245121378,0.1296,95646.0,95645.0,0.2091915]
[1735245121792,0.1296,95646.0,95645.0,8.55e-05]
[1735245121793,0.23358632,95646.0,95645.0,8.55e-05]
[1735245123043,0.23858632,95646.0,95645.0,0.0010855]
[1735245123680,0.24158632,95646.0,95645.0,0.0010855]
[1735245123888,0.23358632,95646.0,95637.0,0.209122]
[1735245124132,0.10488493,95645.0,95640.0,0.00014071]
[1735245124307,0.0803,95644.0,95640.0,0.00014071]
[1735245124504,0.13781755,95643.0,95640.0,0.00014071]
[1735245124897,0.0803,95642.0,95640.0,0.00014071]
[1735245125099,0.10488493,95641.0,95640.0,0.00014071]
[1735245125493,0.00393056,95640.0,95627.0,0.209144]
[1735245125703,0.1296,95638.0,95617.0,0.209166]
[1735245125855,0.0803,95636.0,95621.0,0.209157]
[1735245126028,0.10488493,95635.0,95621.0,0.209157]
[1735245126461,0.0803,95634.0,95621.0,0.209157]
[1735245126665,0.10488493,95633.0,95621.0,0.418315]
[1735245126913,0.02091531,95628.0,95625.0,0.209149]
[1735245127116,0.10488493,95627.0,95625.0,0.209149]
[1735245127328,0.0493,95638.0,95633.0,0.209132]
[1735245127521,0.005,95635.0,95634.0,0.23213]
[1735245127718,0.005,95635.0,95634.0,0.31143]
[1735245127858,0.005,95635.0,95634.0,0.1023]
[1735245128059,0.005,95635.0,95634.0,0.25334549]
[1735245128260,0.00393056,95640.0,95639.0,0.209119]
[1735245128465,0.00393056,95640.0,95639.0,0.232119]
[1735245129768,0.00393056,95640.0,95639.0,0.209119]
[1735245130218,0.00393056,95640.0,95639.0,0.210119]
[1735245130474,0.00493056,95640.0,95639.0,0.216119]
[1735245130633,0.00393056,95640.0,95639.0,0.210119]
[1735245130840,0.00393056,95640.0,95639.0,0.209119]
[1735245131036,0.00693056,95640.0,95639.0,0.209119]
[1735245131395,0.01093056,95640.0,95639.0,0.209119]
[1735245131622,0.00793056,95640.0,95639.0,0.209119]
[1735245131819,0.00793056,95640.0,95639.0,0.211119]
[1735245132227,0.00393056,95640.0,95639.0,0.211119]
[1735245133037,0.00393056,95640.0,95639.0,0.209119]
[1735245133242,0.00393056,95640.0,95639.0,0.211119]
[1735245133670,0.00393056,95640.0,95639.0,0.216119]
[1735245133910,0.00393056,95640.0,95639.0,0.209119]
[1735245134191,0.00393056,95640.0,95639.0,0.214119]
[1735245136112,0.00393056,95640.0,95639.0,0.467319]
[1735245136316,0.00393056,95640.0,95639.0,0.67130532]
[1735245136317,5.6e-07,95640.0,95639.0,0.67130532]
[1735245136516,5.9e-07,95641.0,95640.0,0.273]
[1735245136718,5.9e-07,95641.0,95640.0,0.45718632]
[1735245137869,0.00100059,95641.0,95640.0,0.46618632]
[1735245138273,0.00100059,95641.0,95640.0,0.2622]
[1735245138484,5.9e-07,95641.0,95640.0,0.2532]
[1735245138720,5.9e-07,95641.0,95640.0,1.00348632]
[1735245138936,5.9e-07,95641.0,95640.0,1.00948632]
[1735245139137,0.0001712,95647.0,95640.0,1.00948632]
[1735245139138,7.9e-07,95647.0,95646.0,0.482104]
[1735245139338,7.9e-07,95647.0,95646.0,0.66629032]
[1735245140328,7.9e-07,95647.0,95646.0,1.01246645]
[1735245140584,0.000171,95679.0,95670.0,0.209051]
[1735245140790,0.00032611,95671.0,95670.0,0.209051]
[1735245142551,0.00132611,95671.0,95670.0,0.209051]
[1735245142783,0.00132611,95671.0,95668.0,0.209055]
[1735245142972,0.00132611,95671.0,95670.0,0.22013509]
[1735245143140,0.00132611,95671.0,95670.0,0.209051]
[1735245143338,0.00332611,95671.0,95670.0,0.209051]
[1735245143738,0.00232611,95671.0,95670.0,0.209051]
[1735245143948,0.0811,95670.0,95666.0,0.20906]
[1735245144150,0.0469,95668.0,95659.0,0.209075]
[1735245144389,0.10488493,95667.0,95659.0,0.209075]
[1735245144592,0.10488493,95667.0,95656.0,0.209081]
[1735245144837,0.10488493,95667.0,95651.0,0.209092]
[1735245145106,0.03,95660.0,95647.0,0.209101]
[1735245145297,0.12597992,95659.0,95647.0,0.209101]
[1735245145522,0.12597992,95659.0,95651.0,0.209092]
[1735245147054,0.12897992,95659.0,95651.0,0.209092]
[1735245147697,0.12897992,95659.0,95651.0,0.136092]
[1735245147878,0.12897992,95659.0,95644.0,0.0109192]
[1735245148232,0.15563744,95659.0,95650.0,0.418189]
[1735245148433,0.12897992,95659.0,95654.0,0.209086]
[1735245148557,0.12997992,95659.0,95654.0,0.209086]
[1735245149034,0.12897992,95659.0,95654.0,0.209086]
[1735245149438,0.12697992,95659.0,95654.0,0.209086]
[1735245149664,0.0831,95658.0,95641.0,0.21996806]
[1735245149942,0.0491,95656.0,95640.0,8.56e-05]
[1735245150168,0.1322,95646.0,95640.0,8.56e-05]
[1735245150436,0.13768769,95645.0,95640.0,8.56e-05]
[1735245150604,0.0831,95644.0,95640.0,8.56e-05]
[1735245150845,0.10488493,95643.0,95640.0,8.56e-05]
[1735245151437,0.10488493,95643.0,95640.0,0.0010856]
[1735245151782,0.02089393,95642.0,95640.0,0.0010856]
[1735245152023,0.10488493,95641.0,95640.0,0.0010856]
[1735245152226,0.13108282,95641.0,95640.0,0.0010856]
[1735245152882,0.10488493,95641.0,95625.0,0.209148]
[1735245153023,0.10502,95641.0,95625.0,0.209148]
[1735245153215,0.10702,95641.0,95625.0,0.209148]
[1735245153430,0.10702,95641.0,95621.0,0.2092426]
[1735245153618,0.10702,95641.0,95629.0,0.20914]
[1735245153826,0.02601139,95640.0,95629.0,0.20914]
[1735245154082,0.10398632,95639.0,95629.0,0.20914]
[1735245154497,0.10398632,95639.0,95621.0,8.56e-05]
[1735245154899,0.00089861,95638.0,95628.0,0.209141]
[1735245155105,0.10398632,95637.0,95628.0,0.209141]
[1735245155311,0.00089861,95636.0,95628.0,0.209141]
[1735245155515,0.10398632,95635.0,95628.0,0.209141]
[1735245155720,0.10398632,95635.0,95629.0,0.209141]
[1735245156785,0.10498632,95635.0,95629.0,0.209141]
[1735245157004,0.10698632,95635.0,95629.0,0.209141]
[1735245157635,0.10698632,95635.0,95629.0,0.418282]
[1735245157857,0.003,95635.0,95621.0,8.56e-05]
[1735245158042,0.003,95635.0,95633.0,0.209131]
[1735245158730,0.002,95635.0,95633.0,0.209131]
[1735245159489,0.00120488,95641.0,95633.0,0.209131]
[1735245159699,0.10398632,95640.0,95637.0,0.209122]
[1735245159911,0.00089861,95639.0,95637.0,0.209122]
[1735245160172,0.10398632,95638.0,95637.0,0.209122]
[1735245160910,0.12167557,95638.0,95630.0,0.209139]
[1735245161110,0.00089861,95637.0,95630.0,0.209139]
[1735245161322,0.10398632,95636.0,95630.0,0.209139]
[1735245161519,0.00089861,95635.0,95630.0,0.209139]
[1735245161732,0.10398632,95634.0,95630.0,0.209139]
[1735245161934,0.00089861,95633.0,95630.0,0.209139]
[1735245162182,0.10398632,95634.0,95630.0,0.418278]
[1735245163089,0.10398632,95634.0,95630.0,0.419278]
[1735245163299,0.10398632,95634.0,95630.0,0.420278]
[1735245163588,0.10398632,95634.0,95630.0,0.419278]
[1735245163955,0.10498632,95634.0,95630.0,0.419278]
[1735245164166,0.10498632,95634.0,95630.0,0.418278]
[1735245164575,0.002,95634.0,95630.0,0.418278]
[1735245164776,0.002,95634.0,95633.0,0.2539]
[1735245164976,0.001,95634.0,95633.0,0.2539]
[1735245165428,0.002,95634.0,95633.0,0.2539]
[1735245166267,0.00030627,95641.0,95633.0,0.2539]
[1735245166481,0.00030627,95641.0,95635.0,0.173]
[1735245166672,0.00030627,95641.0,95636.0,0.00104539]
[1735245167045,0.00030627,95641.0,95640.0,0.359117]
[1735245167662,0.00030627,95641.0,95640.0,0.382117]
[1735245167856,0.00030627,95641.0,95640.0,0.173]
[1735245168193,0.00030627,95641.0,95640.0,0.17404539]
[1735245168395,0.00030627,95641.0,95640.0,0.02704539]
[1735245168600,0.00130627,95641.0,95640.0,0.04115631]
[1735245168877,0.00030627,95641.0,95640.0,0.03815631]
[1735245169287,0.00130627,95641.0,95640.0,0.03815631]
[1735245169486,0.00330627,95641.0,95640.0,0.03815631]
[1735245169656,0.00330627,95641.0,95640.0,0.39727331]
[1735245169860,0.00130627,95641.0,95640.0,0.39622792]
[1735245170063,0.00330627,95641.0,95640.0,0.39622792]
[1735245170468,0.00130627,95641.0,95640.0,0.39622792]
[1735245170986,0.00030627,95641.0,95640.0,0.39622792]
[1735245171140,0.00030627,95641.0,95640.0,0.39922792]
[1735245171786,0.00030627,95641.0,95640.0,0.39622792]
[1735245171952,0.00030627,95641.0,95640.0,0.40022792]
[1735245172153,0.00130627,95641.0,95640.0,0.40922792]
[1735245172379,0.00130627,95641.0,95640.0,0.59411424]
[1735245172583,0.00130627,95641.0,95640.0,1.14041424]
[1735245173631,0.00030627,95641.0,95640.0,1.13141424]
[1735245173996,0.00030627,95641.0,95640.0,1.12741424]
[1735245174354,0.00030627,95641.0,95640.0,1.13041424]
[1735245174900,0.00130627,95641.0,95640.0,1.13441424]
[1735245175289,0.00030627,95641.0,95640.0,1.12741424]
[1735245175424,0.00130627,95641.0,95640.0,1.13641424]
[1735245175631,0.00130627,95641.0,95640.0,1.14041424]
[1735245178875,0.00130627,95641.0,95640.0,1.13641424]
[1735245179107,0.00030627,95641.0,95640.0,1.12941424]
[1735245179437,0.00030627,95641.0,95640.0,1.12949984]
[1735245179728,0.00030627,95641.0,95640.0,0.95061352]
[1735245180362,0.00030627,95641.0,95640.0,0.92761352]
[1735245180521,0.00030627,95641.0,95640.0,0.92561352]
[1735245180725,0.00030627,95641.0,95640.0,0.92961352]
[1735245181443,0.00030627,95641.0,95640.0,0.92561352]
[1735245181648,0.00130627,95641.0,95640.0,0.93761352]
[1735245182256,0.00130627,95641.0,95640.0,0.39131352]
[1735245182889,0.00030627,95641.0,95640.0,0.37631352]
[1735245183086,0.00130627,95641.0,95640.0,0.40531352]
[1735245184715,0.00130627,95641.0,95640.0,0.38231352]
[1735245185058,0.00030627,95641.0,95640.0,0.22331352]
[1735245185231,0.00030627,95641.0,95640.0,0.22531352]
[1735245185425,0.07950627,95641.0,95640.0,0.22331352]
[1735245185599,0.07950627,95641.0,95640.0,0.22531352]
[1735245185802,0.08050627,95641.0,95640.0,0.23131352]
[1735245186000,0.08050627,95641.0,95640.0,0.22531352]
[1735245186401,0.08050627,95641.0,95640.0,0.22731352]
[1735245186971,0.08050627,95641.0,95640.0,0.22531352]
[1735245187176,0.08050627,95641.0,95640.0,0.22631352]
[1735245190443,0.00130627,95641.0,95640.0,0.22631352]
[1735245192101,0.00130627,95641.0,95640.0,0.24931352]
[1735245192258,0.00130627,95641.0,95640.0,0.94561352]
[1735245192673,0.00130627,95641.0,95640.0,1.04959984]
[1735245192915,0.00130627,95641.0,95640.0,0.82637192]
[1735245193045,2.7e-07,95641.0,95640.0,1.11748892]
[1735245193244,2.7e-07,95641.0,95640.0,1.33043969]
[1735245193452,0.000171,95671.0,95670.0,0.232051]
[1735245193658,0.00032609,95671.0,95670.0,0.232051]
[1735245194967,0.00132609,95671.0,95670.0,0.242051]
[1735245195378,0.00032609,95671.0,95670.0,0.235051]
[1735245195585,0.00132609,95671.0,95670.0,0.244051]
[1735245195791,0.00132609,95671.0,95670.0,0.235051]
[1735245196202,0.00232609,95671.0,95670.0,0.239051]
[1735245196430,0.00232609,95671.0,95670.0,0.243051]
[1735245197030,0.00232609,95671.0,95670.0,0.239051]
[1735245197349,0.00032609,95671.0,95670.0,0.235051]
[1735245197772,0.00132609,95671.0,95670.0,0.242051]
[1735245198595,0.00132609,95671.0,95670.0,0.25500214]
[1735245198975,0.00032609,95671.0,95670.0,0.24800214]
[1735245199180,0.00032609,95671.0,95670.0,0.24500214]
[1735245199378,0.00032609,95671.0,95670.0,0.25100214]
[1735245199608,0.00032609,95671.0,95670.0,0.25300214]
[1735245199816,0.00032609,95671.0,95670.0,0.23000214]
[1735245200017,0.22801241,95671.0,95670.0,0.006]
[1735245200219,0.25081365,95671.0,95670.0,0.006]
[1735245200398,0.25081365,95671.0,95670.0,0.008]
[1735245200813,0.25081365,95671.0,95670.0,0.006]